bitfinex/quotes_SOLUSD_20241215
["timestamp","ask_amount","ask_price","bid_price","bid_amount"]
[1734277108163,1.6079,220.58,220.46,20.68023767]
[1734277108378,1.6079,220.58,220.48,20.0]
[1734277109146,1.6079,220.58,220.49,0.68006358]
[1734277110242,6.6281,220.59,220.49,0.68006358]
[1734277110441,0.12549,220.62,220.49,0.68006358]
[1734277110638,0.25098,220.62,220.49,20.68006358]
[1734277110838,0.12549,220.62,220.53,20.0]
[1734277126852,0.12549,220.62,220.54,0.67997047]
[1734277132668,0.12549,220.62,220.53,20.0]
[1734277137264,1.5841,220.63,220.54,0.67999355]
[1734277137476,1.5841,220.63,220.56,20.0]
[1734277142882,0.12549,220.62,220.56,20.0]
[1734277143364,0.12549,220.62,220.53,11.3359]
[1734277145982,1.5841,220.63,220.56,20.0]
[1734277150164,7.6124,220.71,220.57,20.67994156]
[1734277150367,7.6124,220.71,220.59,20.0]
[1734277150605,7.6124,220.71,220.6,0.6797466]
[1734277150606,0.12549,220.7,220.6,0.6797466]
[1734277151371,7.6124,220.71,220.6,0.6797466]
[1734277151681,0.25098,220.7,220.6,0.6797466]
[1734277152073,24.027864,220.7,220.59,20.0]
[1734277153373,0.25098,220.7,220.59,20.0]
[1734277154191,0.25098,220.7,220.6,0.67975037]
[1734277157278,0.25098,220.7,220.59,20.0]
[1734277158181,24.027864,220.7,220.59,20.0]
[1734277168115,24.027864,220.7,220.57,1.5664]
[1734277168404,24.027864,220.7,220.53,7.0844334]
[1734277168586,24.027864,220.7,220.53,7.76440511]
[1734277169718,24.027864,220.7,220.56,20.0]
[1734277171413,24.027864,220.66,220.52,8.006]
[1734277171617,24.027864,220.64,220.52,1.6371]
[1734277171923,30.151964,220.64,220.49,0.68009594]
[1734277173093,30.151964,220.64,220.51,20.0]
[1734277174589,0.25098,220.64,220.52,20.68005978]
[1734277175185,0.25098,220.64,220.54,20.0]
[1734277175702,0.25098,220.64,220.55,0.67992624]
[1734277178722,0.25098,220.64,220.55,20.67992624]
[1734277178894,0.25098,220.64,220.55,0.67992624]
[1734277179534,0.25098,220.68,220.55,20.67992624]
[1734277179701,0.25098,220.68,220.57,20.0]
[1734277187623,24.027864,220.68,220.57,20.0]
[1734277194530,35.356464,220.68,220.54,7.8935]
[1734277194939,24.027864,220.68,220.54,8.57350196]
[1734277198923,24.027864,220.68,220.57,20.0]
[1734277199344,23.902374,220.69,220.57,20.0]
[1734277199919,0.12549,220.68,220.57,20.0]
[1734277200321,0.12549,220.68,220.57,20.67983232]
[1734277202159,0.25098,220.69,220.57,20.67983232]
[1734277203454,0.12549,220.7,220.57,20.67983232]
[1734277203644,0.25098,220.72,220.59,20.0]
[1734277204946,0.12549,220.72,220.59,20.0]
[1734277205146,1.5463,220.75,220.64,20.0]
[1734277205436,0.12549,220.74,220.64,20.0]
[1734277206060,0.12549,220.74,220.61,6.2081]
[1734277206233,0.12549,220.72,220.6,1.5899]
[1734277216348,0.12549,220.68,220.6,1.5899]
[1734277217165,24.027864,220.7,220.6,1.5899]
[1734277227491,0.12549,220.71,220.6,1.5899]
[1734277227868,0.25098,220.71,220.6,1.5899]
[1734277228767,23.776884,220.72,220.61,20.0]
[1734277228768,20.0,220.72,220.61,20.0]
[1734277228997,11.3255,220.75,220.61,20.67974122]
[1734277228998,0.12549,220.74,220.61,20.67974122]
[1734277229865,24.027864,220.74,220.62,6.6229]
[1734277230766,1.8411548,220.78,220.62,6.6229]
[1734277230984,11.323,220.79,220.66,1.6423]
[1734277231166,0.12549,220.78,220.66,1.6423]
[1734277232109,0.12549,220.75,220.66,1.6423]
[1734277232284,0.25098,220.75,220.66,1.6423]
[1734277233007,24.027864,220.75,220.66,1.6423]
[1734277239596,0.25098,220.75,220.66,1.6423]
[1734277239912,0.12549,220.75,220.66,1.6423]
[1734277242689,0.12549,220.75,220.66,2.32194067]
[1734277244301,0.12549,220.75,220.66,1.6423]
[1734277245201,0.25098,220.75,220.66,1.6423]
[1734277247009,0.12549,220.75,220.66,1.6423]
[1734277248122,0.12549,220.75,220.66,2.32191143]
[1734277249793,0.12549,220.75,220.66,1.6423]
[1734277251309,0.25098,220.75,220.66,1.6423]
[1734277251514,24.027864,220.75,220.66,1.6423]
[1734277255329,20.0,220.72,220.66,1.6423]
[1734277255495,0.25098,220.71,220.66,1.6423]
[1734277257720,0.12549,220.71,220.66,1.6423]
[1734277257911,0.25098,220.71,220.66,1.6423]
[1734277270325,0.12549,220.74,220.66,1.6423]
[1734277270514,2.66746143,220.78,220.66,1.6423]
[1734277270714,2.66746143,220.78,220.67,6.2794]
[1734277271015,11.3228,220.8,220.67,6.2794]
[1734277271420,0.12549,220.79,220.67,6.2794]
[1734277272315,24.027864,220.79,220.67,6.2794]
[1734277275137,0.12549,220.77,220.67,6.2794]
[1734277275337,0.25098,220.74,220.67,6.2794]
[1734277275547,24.027864,220.74,220.67,6.2794]
[1734277276222,24.027864,220.74,220.66,1.6423]
[1734277300262,24.027864,220.72,220.66,1.6423]
[1734277301582,0.12549,220.72,220.66,1.6423]
[1734277301775,31.3244,220.77,220.66,1.6423]
[1734277302186,0.12549,220.76,220.66,1.6423]
[1734277302361,31.3244,220.77,220.66,1.6423]
[1734277302988,24.027864,220.76,220.66,1.6423]
[1734277303176,0.25098,220.72,220.66,1.6423]
[1734277303972,24.027864,220.72,220.66,1.6423]
[1734277320209,0.12549,220.7,220.66,1.6423]
[1734277320413,24.027864,220.7,220.62,6.4694]
[1734277321008,0.25098,220.66,220.62,6.4694]
[1734277324495,24.027864,220.66,220.6,3.31239]
[1734277326597,20.0,220.63,220.6,3.31239]
[1734277327912,0.25098,220.66,220.6,3.31239]
[1734277328112,0.25098,220.63,220.6,3.31239]
[1734277333999,24.027864,220.63,220.6,3.31239]
[1734277335222,1.79331322,220.7,220.6,1.77089]
[1734277335223,44.027864,220.61,220.6,1.77089]
[1734277338823,35.360564,220.6,220.5,1.6663]
[1734277339009,24.027864,220.56,220.5,1.6663]
[1734277339209,20.0,220.53,220.5,1.6663]
[1734277348214,0.25098,220.52,220.5,1.6663]
[1734277348639,0.25098,220.52,220.47,6.6452]
[1734277349732,0.12549,220.52,220.47,6.6452]
[1734277349935,0.25098,220.52,220.47,6.6452]
[1734277359845,0.25098,220.52,220.45,1.6663]
[1734277368630,93.0326,220.61,220.45,1.6663]
[1734277368834,93.0326,220.61,220.45,22.3465367]
[1734277369232,0.12549,220.6,220.45,22.3465367]
[1734277369931,0.12549,220.57,220.45,22.3465367]
[1734277370173,24.027864,220.57,220.45,21.6663]
[1734277372436,24.027864,220.57,220.45,22.34651439]
[1734277375750,24.027864,220.57,220.45,21.6663]
[1734277378670,24.027864,220.57,220.45,1.6663]
[1734277379909,0.12549,220.53,220.45,1.6663]
[1734277380193,24.027864,220.53,220.45,1.6663]
[1734277381989,0.12549,220.54,220.45,1.6663]
[1734277382689,0.25098,220.54,220.45,1.6663]
[1734277393297,0.25098,220.54,220.45,8.7507334]
[1734277393497,0.25098,220.54,220.45,1.6663]
[1734277395989,0.25098,220.54,220.45,8.7507334]
[1734277400018,0.25098,220.54,220.45,1.6663]
[1734277400410,0.25098,220.54,220.45,8.7507334]
[1734277401297,23.776884,220.61,220.47,1.605]
[1734277401499,11.3321,220.62,220.48,0.68011014]
[1734277402706,20.0,220.59,220.48,0.68011014]
[1734277403802,20.0,220.59,220.49,7.0844334]
[1734277404010,0.25098,220.61,220.5,0.68006318]
[1734277404196,0.25098,220.61,220.51,1.605]
[1734277405709,20.0,220.64,220.52,0.68003292]
[1734277406000,20.0,220.64,220.53,6.182]
[1734277406601,0.12549,220.63,220.53,6.182]
[1734277407101,0.25098,220.63,220.53,6.182]
[1734277412440,24.027864,220.63,220.53,6.182]
[1734277419040,13.69561187,220.68,220.53,6.182]
[1734277419041,20.0,220.65,220.54,1.5918]
[1734277419238,23.902374,220.67,220.54,1.5918]
[1734277420122,0.12549,220.66,220.54,1.5918]
[1734277431448,0.12549,220.66,220.55,2.22994173]
[1734277431832,0.12549,220.66,220.55,1.55]
[1734277433536,0.12549,220.66,220.53,6.41192448]
[1734277433741,0.12549,220.66,220.53,5.7319998]
[1734277436441,0.12549,220.66,220.54,1.568]
[1734277457675,24.027864,220.64,220.54,1.568]
[1734277469577,23.776884,220.64,220.54,1.568]
[1734277472573,14.10611956,220.69,220.57,6.6124]
[1734277472894,93.0264,220.73,220.58,1.5048]
[1734277473072,0.12549,220.72,220.58,1.5048]
[1734277473975,0.12549,220.7,220.58,1.5048]
[1734277474167,24.027864,220.7,220.58,1.5048]
[1734277475202,26.81408065,220.7,220.58,1.5048]
[1734277475986,24.027864,220.68,220.58,1.5048]
[1734277480190,24.027864,220.66,220.58,1.5048]
[1734277488279,24.027864,220.64,220.58,1.5048]
[1734277489283,24.027864,220.64,220.49,7.0844334]
[1734277489284,44.027864,220.6,220.53,1.5173]
[1734277489492,24.027864,220.6,220.53,1.5173]
[1734277490094,20.0,220.59,220.53,1.5173]
[1734277490285,23.776884,220.58,220.53,1.5173]
[1734277494981,0.25098,220.57,220.53,1.5173]
[1734277495799,0.25098,220.57,220.51,6.1228]
[1734277496719,0.12549,220.55,220.48,1.5422]
[1734277496888,0.25098,220.55,220.48,1.5422]
[1734277503226,0.25098,220.55,220.46,6.47]
[1734277504330,0.12549,220.48,220.43,1.9936445]
[1734277504532,0.25098,220.48,220.43,0.4639445]
[1734277504909,24.027864,220.45,220.43,0.4639445]
[1734277509109,35.243274,220.44,220.43,0.4639445]
[1734277509338,35.368764,220.44,220.43,0.4639445]
[1734277512358,11.46639,220.44,220.43,0.4639445]
[1734277512742,20.0,220.47,220.43,0.4639445]
[1734277513036,11.3391,220.48,220.43,0.4639445]
[1734277513244,0.12549,220.47,220.43,0.4639445]
[1734277514262,24.027864,220.47,220.43,0.4639445]
[1734277516456,11.3399,220.46,220.43,0.4639445]
[1734277516650,24.027864,220.45,220.43,0.4639445]
[1734277518954,35.368764,220.44,220.43,0.4639445]
[1734277522634,24.027864,220.44,220.43,0.4639445]
[1734277543181,24.027864,220.44,220.43,4.45e-05]
[1734277557482,0.12549,220.44,220.43,4.45e-05]
[1734277558278,0.25098,220.44,220.43,4.45e-05]
[1734277559077,24.027864,220.44,220.43,4.45e-05]
[1734277559875,23.776884,220.48,220.43,4.45e-05]
[1734277561090,0.25098,220.47,220.43,4.45e-05]
[1734277562605,24.027864,220.44,220.43,4.45e-05]
[1734277574890,11.3383,220.5,220.43,4.45e-05]
[1734277576025,11.3361,220.54,220.44,6.3829]
[1734277576701,0.12549,220.53,220.44,6.3829]
[1734277576907,16.11978317,220.58,220.45,1.6062]
[1734277577088,11.334,220.58,220.45,1.6062]
[1734277578199,11.3316,220.63,220.47,20.0]
[1734277578584,0.12549,220.62,220.47,20.0]
[1734277579319,11.3316,220.63,220.47,20.0]
[1734277579618,0.12549,220.59,220.47,20.0]
[1734277580702,0.12549,220.58,220.47,20.0]
[1734277583088,0.12549,220.58,220.48,6.3817]
[1734277583622,23.902374,220.59,220.48,6.3817]
[1734277583792,23.902374,220.59,220.49,1.5592]
[1734277586204,0.12549,220.62,220.51,20.0]
[1734277586512,0.12549,220.66,220.52,7.9409]
[1734277586808,0.25098,220.66,220.52,7.9409]
[1734277587522,0.12549,220.61,220.52,7.9409]
[1734277587690,24.027864,220.6,220.52,7.9409]
[1734277604538,24.027864,220.58,220.52,1.5592]
[1734277605354,23.902374,220.58,220.52,1.5592]
[1734277605535,4.49878717,220.66,220.53,6.0986]
[1734277605536,11.3315,220.63,220.53,6.0986]
[1734277606609,23.902374,220.62,220.53,6.0986]
[1734277608217,0.12549,220.61,220.53,6.0986]
[1734277614952,24.027864,220.59,220.53,6.0986]
[1734277615156,24.027864,220.59,220.52,1.5592]
[1734277616069,24.027864,220.55,220.48,6.2673]
[1734277617044,24.027864,220.55,220.47,1.6532]
[1734277617045,35.363164,220.55,220.47,1.6532]
[1734277620486,24.027864,220.51,220.47,1.6532]
[1734277620665,24.027864,220.51,220.43,6.2673445]
[1734277620971,20.0,220.52,220.43,6.2673445]
[1734277620972,24.027864,220.49,220.43,6.2673445]
[1734277621470,24.027864,220.49,220.43,4.45e-05]
[1734277622867,0.12549,220.49,220.43,4.45e-05]
[1734277623070,24.027864,220.47,220.43,4.45e-05]
[1734277626472,24.027864,220.45,220.43,4.45e-05]
[1734277628280,0.12549,220.45,220.43,4.45e-05]
[1734277628578,23.776884,220.47,220.43,4.45e-05]
[1734277628579,0.12549,220.46,220.43,4.45e-05]
[1734277628949,11.3361,220.54,220.44,1.6532]
[1734277630070,0.12549,220.53,220.44,1.6532]
[1734277630672,0.12549,220.52,220.44,1.6532]
[1734277632774,23.527864,220.53,220.44,1.6532]
[1734277634958,0.25098,220.52,220.44,1.6532]
[1734277637976,20.0,220.57,220.45,6.5522]
[1734277638200,0.12549,220.55,220.45,6.5522]
[1734277638681,24.027864,220.57,220.45,6.5522]
[1734277649667,24.027864,220.55,220.45,6.5522]
[1734277663295,24.027864,220.55,220.46,1.5048]
[1734277663497,10.940686,220.6,220.49,6.5994]
[1734277663498,22.273686,220.6,220.49,6.5994]
[1734277663672,0.12549,220.59,220.49,6.5994]
[1734277664696,24.027864,220.59,220.49,6.5994]
[1734277665599,24.027864,220.59,220.5,1.5048]
[1734277684113,22.273686,220.6,220.52,20.0]
[1734277684114,10.940686,220.6,220.52,20.0]
[1734277684416,10.940686,220.6,220.54,7.9246]
[1734277684624,10.940686,220.6,220.55,0.67995654]
[1734277687018,10.940686,220.6,220.54,7.9246]
[1734277692921,24.027864,220.59,220.54,7.9246]
[1734277700237,24.027864,220.59,220.47,0.68001422]
[1734277700238,35.361264,220.59,220.49,8.0211]
[1734277706425,24.027864,220.59,220.49,8.0211]
[1734277707440,10.940686,220.6,220.49,8.0211]
[1734277708302,10.940686,220.6,220.5,0.68007498]
[1734277710913,10.940686,220.6,220.49,8.0211]
[1734277712820,24.027864,220.59,220.49,8.0211]
[1734277714916,24.027864,220.57,220.49,8.0211]
[1734277715319,0.12549,220.53,220.44,7.6715]
[1734277715517,24.027864,220.53,220.44,7.6715]
[1734277717323,35.364464,220.53,220.44,7.6715]
[1734277724840,24.027864,220.49,220.43,4.45e-05]
[1734277725137,24.027864,220.45,220.43,4.45e-05]
[1734277740354,35.368764,220.44,220.43,4.45e-05]
[1734277743560,40.368764,220.44,220.43,4.45e-05]
[1734277743770,45.38893691,220.44,220.43,4.45e-05]
[1734277745487,0.25098,220.4,220.28,6.229]
[1734277745991,0.25098,220.4,220.27,1.5599]
[1734277745992,0.25098,220.38,220.27,1.5599]
[1734277746155,20.25098,220.38,220.27,1.5599]
[1734277747173,0.25098,220.36,220.27,1.5599]
[1734277747476,13.159292,220.5,220.32,6.229]
[1734277747666,11.3378,220.5,220.32,6.229]
[1734277748780,0.25098,220.46,220.32,6.229]
[1734277751268,0.25098,220.46,220.33,1.5599]
[1734277753171,0.25098,220.41,220.33,1.5599]
[1734277754404,0.25098,220.41,220.22,8.2236]
[1734277755287,0.25098,220.36,220.22,8.2236]
[1734277755776,5.0,220.44,220.22,8.2236]
[1734277755777,5.0,220.55,220.28,1.72139]
[1734277755972,6.5229,220.57,220.34,8.2236]
[1734277756293,8.36400257,220.57,220.37,20.0]
[1734277756465,0.12549,220.56,220.37,20.0]
[1734277757185,0.25098,220.46,220.37,20.0]
[1734277757975,0.25098,220.46,220.37,38.64]
[1734277758387,34.0042,220.56,220.41,20.0]
[1734277759566,0.12549,220.52,220.41,20.0]
[1734277759777,0.25098,220.49,220.41,20.0]
[1734277760089,20.0,220.53,220.42,1.5959]
[1734277760298,0.12549,220.55,220.42,1.5959]
[1734277761199,0.25098,220.55,220.42,1.5959]
[1734277761790,1.77928844,220.59,220.42,1.5959]
[1734277761791,20.25098,220.51,220.42,1.5959]
[1734277763076,0.25098,220.49,220.42,1.5959]
[1734277764071,0.25098,220.47,220.38,6.6277]
[1734277764272,0.12549,220.44,220.38,6.6277]
[1734277764503,0.25098,220.44,220.38,6.6277]
[1734277765495,11.59198,220.44,220.38,6.6277]
[1734277765702,11.59198,220.44,220.36,1.5959]
[1734277766102,0.25098,220.4,220.36,1.5959]
[1734277766397,0.25098,220.4,220.33,6.6277]
[1734277767183,11.46849,220.4,220.33,6.6277]
[1734277767501,0.12549,220.39,220.33,6.6277]
[1734277769389,0.25098,220.37,220.31,1.5959]
[1734277769999,0.12549,220.34,220.28,6.6277]
[1734277770192,0.25098,220.34,220.28,6.6277]
[1734277771613,0.12549,220.34,220.28,6.6277]
[1734277772610,20.0,220.41,220.28,6.6277]
[1734277772811,11.3437,220.39,220.28,6.6277]
[1734277773695,0.12549,220.38,220.28,6.6277]
[1734277774316,0.25098,220.38,220.28,6.6277]
[1734277776409,20.0,220.4,220.29,1.6499]
[1734277777014,0.12549,220.42,220.29,1.6499]
[1734277777207,11.3418,220.43,220.31,20.0]
[1734277777515,11.3383,220.49,220.32,8.1767]
[1734277778131,0.12549,220.48,220.32,8.1767]
[1734277778631,0.12549,220.46,220.32,8.1767]
[1734277779242,0.25098,220.43,220.32,8.1767]
[1734277780602,1.83122281,220.51,220.37,1.6196]
[1734277780603,11.3377,220.51,220.37,1.6196]
[1734277781703,34.13119,220.55,220.37,1.6196]
[1734277781903,0.12549,220.51,220.37,1.6196]
[1734277782616,0.12549,220.54,220.37,1.6196]
[1734277783326,0.25098,220.54,220.37,1.6196]
[1734277783921,22.6705,220.55,220.37,1.6196]
[1734277783922,0.25098,220.49,220.37,1.6196]
[1734277785613,0.25098,220.47,220.37,1.6196]
[1734277787105,0.12549,220.47,220.37,1.6196]
[1734277787300,0.25098,220.45,220.37,1.6196]
[1734277788112,0.12549,220.46,220.37,1.6196]
[1734277788830,0.25098,220.46,220.37,1.6196]
[1734277794336,0.25098,220.44,220.37,1.6196]
[1734277799049,0.25098,220.42,220.37,1.6196]
[1734277800323,0.25098,220.42,220.22,134.7]
[1734277800324,0.25098,220.4,220.32,8.0727]
[1734277801422,11.46899,220.39,220.32,8.0727]
[1734277801622,0.12549,220.38,220.32,8.0727]
[1734277803120,0.25098,220.36,220.32,1.5388]
[1734277803546,24.027864,220.36,220.27,8.0727]
[1734277804746,0.12549,220.31,220.27,8.0727]
[1734277804946,0.25098,220.29,220.27,8.0727]
[1734277805136,0.25098,220.29,220.22,8.0727]
[1734277806325,0.12549,220.27,220.22,8.0727]
[1734277806535,0.25098,220.27,220.22,8.0727]
[1734277807746,0.25098,220.27,220.21,0.5458747]
[1734277807747,0.12549,220.24,220.21,0.5458747]
[1734277807950,1.8497601,220.35,220.22,1.5388]
[1734277808156,1.5363,220.41,220.23,6.5339]
[1734277808533,0.12549,220.4,220.23,6.5339]
[1734277809040,0.12549,220.4,220.26,20.0]
[1734277809250,0.12549,220.36,220.26,20.0]
[1734277809553,24.027864,220.36,220.26,20.0]
[1734277810138,24.027864,220.36,220.23,6.5339]
[1734277810337,35.372864,220.36,220.23,6.5339]
[1734277810847,24.027864,220.33,220.23,6.5339]
[1734277811034,24.027864,220.29,220.23,6.5339]
[1734277811444,24.027864,220.29,220.22,1.5388]
[1734277812572,24.027864,220.29,220.21,0.5458747]
[1734277812736,24.027864,220.27,220.21,0.5458747]
[1734277815475,24.027864,220.25,220.21,0.5458747]
[1734277816537,0.12549,220.25,220.21,0.5458747]
[1734277816943,0.25098,220.25,220.21,0.5458747]
[1734277818079,0.12549,220.25,220.21,0.5458747]
[1734277819451,24.027864,220.26,220.21,0.5458747]
[1734277820064,20.0,220.28,220.21,0.5458747]
[1734277820263,11.3479,220.31,220.21,0.5458747]
[1734277820481,11.3438,220.39,220.26,20.0]
[1734277821385,0.12549,220.38,220.23,6.0616]
[1734277821685,0.12549,220.34,220.23,6.0616]
[1734277823789,1.83099878,220.42,220.23,6.0616]
[1734277823790,29.1808,220.43,220.26,20.0]
[1734277823947,12.8791,220.41,220.26,20.0]
[1734277824145,11.3428,220.41,220.26,20.0]
[1734277824550,0.12549,220.37,220.26,20.0]
[1734277825052,2.71561137,220.38,220.26,20.0]
[1734277825652,0.12549,220.37,220.26,20.0]
[1734277826047,11.3428,220.41,220.27,1.6482]
[1734277826285,1.527,220.46,220.31,20.0]
[1734277826286,11.3406,220.45,220.31,20.0]
[1734277827190,11.3385,220.49,220.32,1.6482]
[1734277827397,0.12549,220.44,220.32,1.6482]
[1734277828152,11.3414,220.43,220.32,1.6482]
[1734277828357,24.027864,220.42,220.32,1.6482]
[1734277835522,22.6736,220.52,220.33,7.083841]
[1734277835659,0.12549,220.46,220.36,20.0]
[1734277836695,24.027864,220.46,220.36,20.0]
[1734277838582,24.027864,220.44,220.36,20.0]
[1734277845104,24.027864,220.44,220.33,6.4032]
[1734277855120,11.3387,220.49,220.36,20.0]
[1734277855618,0.12549,220.48,220.36,20.0]
[1734277856281,24.027864,220.48,220.36,20.0]
[1734277858695,24.027864,220.46,220.36,20.0]
[1734277860286,23.902374,220.46,220.36,20.0]
[1734277860525,20.0,220.52,220.39,8.1299]
[1734277860808,34.0065,220.55,220.39,26.7699]
[1734277861594,0.12549,220.52,220.39,26.7699]
[1734277861801,11.3363,220.53,220.43,1.5123]
[1734277862004,11.3363,220.53,220.44,6.6176]
[1734277862980,0.25098,220.52,220.44,6.6176]
[1734277865610,11.3332,220.59,220.47,20.0]
[1734277865928,2.65455187,220.58,220.47,20.0]
[1734277867116,0.25098,220.56,220.47,20.0]
[1734277871021,0.25098,220.56,220.48,1.6129]
[1734277874555,24.027864,220.58,220.48,1.6129]
[1734277874725,24.027864,220.56,220.48,1.6129]
[1734277878132,10.940686,220.6,220.49,6.1324]
[1734277878433,10.940686,220.6,220.5,0.68006168]
[1734277881539,10.940686,220.6,220.5,19.31006168]
[1734277881743,10.940686,220.6,220.5,0.68006168]
[1734277883143,0.25098,220.59,220.49,6.1324]
[1734277883376,24.027864,220.59,220.49,6.1324]
[1734277883880,35.361264,220.59,220.49,6.1324]
[1734277903364,10.940686,220.6,220.53,6.1386]
[1734277903666,10.940686,220.6,220.56,20.0]
[1734277904767,10.940686,220.6,220.57,0.67991121]
[1734277905178,10.940686,220.6,220.58,7.7226]
[1734277905671,7.607486,220.6,220.59,0.67986273]
[1734277905885,5.940886,220.6,220.59,1.24186273]
[1734277906082,10.940686,220.61,220.6,20.0]
[1734277907087,10.378686,220.61,220.6,24.96]
[1734277907590,10.378686,220.61,220.6,29.96]
[1734277909189,10.378686,220.61,220.6,24.96]
[1734277912796,10.378686,220.61,220.6,20.0]
[1734277915992,10.378686,220.61,220.6,24.96]
[1734277916180,10.378686,220.61,220.6,20.0]
[1734277917980,10.378686,220.61,220.6,38.62]
[1734277919405,10.378686,220.61,220.58,6.1386]
[1734277919602,10.378686,220.61,220.59,18.62]
[1734277920795,10.378686,220.61,220.56,0.67984909]
[1734277920993,10.378686,220.61,220.57,18.62]
[1734277921897,10.378686,220.61,220.54,0.67993525]
[1734277922106,10.378686,220.61,220.56,20.0]
[1734277922601,10.378686,220.61,220.52,20.0]
[1734277925011,12.033186,220.61,220.52,20.0]
[1734277925589,24.027864,220.6,220.48,6.3095]
[1734277925791,24.027864,220.6,220.46,0.68013971]
[1734277925987,35.360564,220.6,220.47,0.89]
[1734277927485,35.360564,220.6,220.43,6.3095]
[1734277928508,35.360564,220.6,220.44,0.89]
[1734277928812,35.360564,220.6,220.46,20.0]
[1734277929108,24.027864,220.56,220.36,146.68984601]
[1734277929280,24.027864,220.56,220.38,11.8127457]
[1734277929479,24.027864,220.56,220.39,0.89]
[1734277930296,7.7452,220.55,220.39,0.89]
[1734277930499,24.027864,220.54,220.36,6.3095]
[1734277930716,24.027864,220.54,220.37,18.64]
[1734277931700,24.027864,220.52,220.37,18.64]
[1734277932211,24.027864,220.52,220.4,20.0]
[1734277934588,24.027864,220.52,220.39,20.0]
[1734277935312,0.12549,220.5,220.39,20.0]
[1734277935613,24.027864,220.5,220.39,20.0]
[1734277936685,1.6305,220.49,220.39,20.0]
[1734277936982,24.027864,220.48,220.37,20.0]
[1734277937201,24.027864,220.48,220.36,20.0]
[1734277938304,24.027864,220.48,220.34,2.47757179]
[1734277938622,0.25098,220.46,220.35,20.89]
[1734277940611,24.027864,220.46,220.35,0.89]
[1734277941519,6.4086,220.47,220.35,0.89]
[1734277941726,1.6305,220.49,220.39,20.0]
[1734277942020,1.6305,220.49,220.41,20.0]
[1734277942196,1.6305,220.49,220.42,0.6802908]
[1734277945228,8.0391,220.53,220.44,20.0]
[1734277945400,1.6305,220.53,220.45,0.68017686]
[1734277945588,1.6305,220.53,220.46,20.0]
[1734277945790,1.6305,220.53,220.47,0.68017064]
[1734277945991,1.6305,220.53,220.46,20.0]
[1734277949427,1.6305,220.53,220.47,0.68017611]
[1734277950569,1.6305,220.53,220.46,20.0]
[1734277951420,1.6305,220.53,220.43,20.0]
[1734277952204,1.6305,220.53,220.42,20.0]
[1734277954358,24.027864,220.52,220.42,20.0]
[1734277955227,24.027864,220.52,220.41,20.0]
[1734277955547,1.6305,220.53,220.4,20.0]
[1734277955548,24.027864,220.5,220.4,20.0]
[1734277957944,1.5807,220.49,220.39,20.0]
[1734277958254,0.12549,220.48,220.39,20.0]
[1734277959538,24.027864,220.48,220.39,20.0]
[1734277961143,24.027864,220.48,220.36,20.0]
[1734277961341,24.027864,220.48,220.37,1.69]
[1734277962270,24.027864,220.48,220.36,20.0]
[1734277967341,23.902374,220.46,220.36,20.0]
[1734277971370,23.902374,220.46,220.35,20.0]
[1734277973266,23.902374,220.46,220.34,20.0]
[1734277973442,23.902374,220.46,220.35,0.68050516]
[1734277974049,0.12549,220.45,220.33,21.8495012]
[1734277974248,0.12549,220.45,220.33,20.0]
[1734277975369,24.027864,220.43,220.33,20.0]
[1734277979375,24.027864,220.43,220.32,20.0]
[1734277982187,1.6053,220.4,220.3,20.0]
[1734277982354,1.6053,220.4,220.27,0.68071078]